fUSD/lending_fUSD_20241210
["ID","MTS","AMOUNT","RATE_DAILY","PERIOD"]
[344900554,1733857841241,-500.0,0.00010958,2]
[344900556,1733857841250,-500.0,0.00010958,2]
[344900558,1733857841260,-500.0,0.00010958,2]
[344900560,1733857841269,-500.0,0.00010958,2]
[344900562,1733857841278,-500.0,0.00010958,2]
[344900564,1733857841287,-955.97,0.00010958,2]
[344900566,1733857841297,-215.97015387,0.00010958,2]
[344900786,1733857843562,-474.62984613,0.00010958,2]
[344900787,1733857843571,-566.14,0.00010958,2]
[344900788,1733857843581,-188.3314979,0.00010958,2]
[344900789,1733857843590,-500.0,0.00010958,2]
[344900790,1733857843599,-500.0,0.00010958,2]
[344900791,1733857843609,-500.0,0.00010958,2]
[344900792,1733857843619,-559.86,0.00010958,2]
[344900793,1733857843628,-526.82,0.00010958,2]
[344900794,1733857843637,-8770.83,0.00010958,2]
[344900795,1733857843647,-694.44,0.00010958,2]
[344900796,1733857843658,-1090.27,0.00010958,2]
[344900797,1733857843668,-888.26,0.00010958,2]
[344900798,1733857843677,-500.0,0.00010958,2]
[344900799,1733857843687,-562.58,0.00010958,2]
[344900800,1733857843696,-602.73299799,0.00010958,2]
[344900801,1733857843706,-500.0,0.00010958,2]
[344900802,1733857843715,-1139.78,0.00010958,2]
[344900803,1733857843725,-368.42,0.00010958,2]
[344900804,1733857843734,-500.0,0.00010958,2]
[344900805,1733857843744,-500.0,0.00010958,2]
[344900806,1733857843753,-500.0,0.00010958,2]
[344900807,1733857843762,-2563.06565898,0.00010958,2]
[344900808,1733857843774,-1108.30602891,0.00010958,2]
[344900809,1733857843788,-355.10500808,0.00010958,2]
[344900810,1733857843799,-2107.30000007,0.00010958,2]
[344900811,1733857843811,-673.98330396,0.00010958,2]
[344900812,1733857843820,-500.0,0.00010958,2]
[344900813,1733857843830,-2779.67,0.00010958,2]
[344900814,1733857843839,-500.0,0.00010958,2]
[344900815,1733857843848,-500.0,0.00010958,2]
[344900816,1733857843857,-500.0,0.00010958,2]
[344900817,1733857843866,-778.21,0.00010958,2]
[344900818,1733857843876,-500.0,0.00010958,2]
[344900819,1733857843885,-462.93669599,0.00010958,2]
[344900820,1733857843897,-1537.14330401,0.00010958,2]
[344900821,1733857843908,-500.0,0.00010958,2]
[344900822,1733857843917,-71.24515148,0.00010958,2]
[344900823,1733857843929,-1179.02484852,0.00010958,2]
[344900824,1733857843939,-711.38,0.00010958,2]
[344900825,1733857843948,-500.0,0.00010958,2]
[344900826,1733857843957,-2692.72935153,0.00010958,2]
[344900827,1733857843976,-9954.18064847,0.00010958,2]
[344900828,1733857843986,-530.5,0.00010958,2]
[344900829,1733857843995,-500.0,0.00010958,2]
[344900830,1733857844004,-1846.36,0.00010958,2]
[344900831,1733857844013,-1604.14,0.00010958,2]
[344900832,1733857844022,-933.28,0.00010958,2]
[344900833,1733857844031,-500.0,0.00010958,2]
[344900834,1733857844040,-500.0,0.00010958,2]
[344900835,1733857844050,-1866.69,0.00010958,2]
[344900836,1733857844059,-1276.42,0.00010958,2]
[344900837,1733857844069,-5996.04,0.00010958,2]
[344900838,1733857844079,-500.0,0.00010958,2]
[344900840,1733857844089,-500.0,0.00010958,2]
[344900842,1733857844097,-500.0,0.00010958,2]
[344900843,1733857844108,-392.45,0.00010958,2]
[344900844,1733857844117,-500.0,0.00010958,2]
[344900845,1733857844127,-500.0,0.00010958,2]
[344900846,1733857844139,-500.0,0.00010958,2]
[344900847,1733857844148,-1354.9,0.00010958,2]
[344900848,1733857844158,-500.0,0.00010958,2]
[344900849,1733857844167,-500.0,0.00010958,2]
[344900850,1733857844177,-638.58,0.00010958,2]
[344900851,1733857844187,-500.0,0.00010958,2]
[344900852,1733857844196,-1648.67,0.00010958,2]
[344900853,1733857844205,-396.23,0.00010958,2]
[344900854,1733857844214,-1017.03,0.00010958,2]
[344900855,1733857844224,-1007.03,0.00010958,2]
[344900856,1733857844233,-151.97196539,0.00010958,2]
[344900857,1733857844242,-200.0,0.00010959,2]
[344900858,1733857844251,-150.0,0.00010959,2]
[344900859,1733857844260,-151.97196539,0.00010968,2]
[344900860,1733857844269,-13815.64330872,0.0001097,2]
[344900861,1733857844279,-990.77,0.0001097,2]
[344900862,1733857844288,-250.0,0.00010971,2]
[344900863,1733857844297,-156.095,0.00010971,2]
[344900864,1733857844306,-150.0,0.00010971,2]
[344900865,1733857844315,-167.0,0.00010971,2]
[344900866,1733857844325,-859.14180826,0.00010971,2]
[344900867,1733857844334,-783.45960311,0.00010971,2]
[344900868,1733857844343,-783.45960311,0.00010971,2]
[344900869,1733857844352,-7586.74208944,0.00010971,2]
[344900870,1733857844361,-260.74709327,0.00010971,2]
[344900871,1733857844371,-3000.0,0.00010971,2]
[344900872,1733857844380,-4857.33520184,0.00010972,2]
[344900873,1733857844392,-1175.20441294,0.00010972,2]
[344900874,1733857844405,-172.356,0.00010972,2]
[344900875,1733857844414,-150.0,0.00010972,2]
[344900876,1733857844427,-1262.0,0.00010972,2]
[344900877,1733857844436,-567.0,0.00010972,2]
[344900878,1733857844445,-150.0,0.00010972,2]
[344900879,1733857844454,-2005.0,0.00010972,2]
[344900880,1733857844463,-631.0,0.00010972,2]
[344900881,1733857844473,-564.0,0.00010972,2]
[344900882,1733857844482,-1719.23958636,0.00010972,2]
[344900883,1733857844494,-174.76041364,0.00010972,2]
[344900884,1733857844503,-817.0,0.00010972,2]
[344900885,1733857844512,-1253.0,0.00010972,2]
[344900886,1733857844521,-564.18358636,0.00010972,2]
[344900887,1733857844550,-3198.81641364,0.00010972,2]
[344900888,1733857844560,-535.0,0.00010972,2]
[344900889,1733857844569,-932.0,0.00010972,2]
[344900890,1733857844578,-2302.26246007,0.00010972,2]
[344900893,1733857845805,-365.70883633,0.00010768,2]
[344900894,1733857845817,-732.29116367,0.00010768,2]
[344900895,1733857845826,-1292.73753993,0.00010972,2]
[344900896,1733857845836,-200.0,0.00010972,2]
[344900897,1733857845846,-720.35862147,0.00010972,2]
[344900898,1733857845855,-61394.37117371,0.00010972,2]
[344900899,1733857845953,-55598.27763733,0.00010972,2]
[344900900,1733857845964,-9526.8,0.00010972,2]
[344900901,1733857845976,-1284.6599998,0.00010972,2]
[344900902,1733857846098,-3773.34282593,0.00010972,2]
[344900903,1733857860291,820.08,8.219e-05,2]
[344900907,1733858220336,-1000.0,0.00021,120]
[344900908,1733858220377,-1000.0,0.00021917,120]
[344900909,1733858220410,-1000.0,0.00021917,120]
[344900910,1733858220443,-188.44003908,0.00021917,120]
[344900911,1733858220477,-2000.0,0.00021957,120]
[344900912,1733858220515,-500.0,0.00022,120]
[344900916,1733858241123,-500.0,0.00022208,120]
[344900917,1733858241159,-2000.0,0.00022731,120]
[344900918,1733858241196,-600.0,0.00023,120]
[344900919,1733858266233,-2000.0,0.00023014,120]
[344900920,1733858266281,-711.55996092,0.00023014,120]
[344900921,1733858397209,-150.0,0.00016658,30]
[344901406,1733858860475,779.07,8.219e-05,2]
[344901453,1733858975234,398.0,0.000201,120]
[344901458,1733858991357,397.0,0.0001731,90]
[344901459,1733859021708,434.0,0.000155,60]
[344901467,1733859032122,-23900.0,9.789e-05,2]
[344901468,1733859032132,-38.64200204,9.806e-05,2]
[344901469,1733859032144,-120.61799796,9.806e-05,2]
[344901470,1733859032154,-250.0,9.863e-05,2]
[344901471,1733859032164,-173.37200204,9.936e-05,2]
[344901472,1733859032175,-576.26751146,9.936e-05,2]
[344901473,1733859032282,-250.3604865,9.936e-05,2]
[344901474,1733859032291,-29.33608626,9.997e-05,2]
[344901475,1733859032303,-170.66391374,9.997e-05,2]
[344901476,1733859032313,-904.76608626,0.0001,2]
[344901477,1733859032324,-807.067,0.0001,2]
[344901478,1733859032335,-236.96453725,0.0001,2]
[344901479,1733859032345,-579.27546275,0.0001005,2]
[344901480,1733859032357,-18.08453725,0.0001005,2]
[344901481,1733859032366,-250.0,0.0001005,2]
[344901482,1733859032375,-435.263,0.0001042,2]
[344901483,1733859032385,-94.95700075,0.00010466,2]
[344901484,1733859032398,-684.11299925,0.00010466,2]
[344901485,1733859032407,-116.23900075,0.00010483,2]
[344901486,1733859032420,-587.701728,0.00010483,2]
[344901487,1733859032432,-285.15927125,0.00010483,2]
[344901488,1733859032441,-508.44072875,0.00010486,2]
[344901489,1733859032457,-478.53927125,0.00010486,2]
[344901490,1733859032467,-338.83772875,0.0001049,2]
[344901491,1733859032479,-537.216,0.0001049,2]
[344901492,1733859032495,-134.30627125,0.0001049,2]
[344901493,1733859032505,-614.8318419,0.00010499,2]
[344901494,1733859032516,-310.8934765,0.00010499,2]
[344901495,1733859032529,-89.4946816,0.00010499,2]
[344901496,1733859032538,-1001.74,0.00010515,2]
[344901497,1733859032548,-1019.24,0.00010543,2]
[344901498,1733859032558,-1011.4,0.00010594,2]
[344901499,1733859032568,-1000.0,0.000106,2]
[344901500,1733859032577,-1005.92,0.00010687,2]
[344901501,1733859032586,-150.0,0.00010769,2]
[344901502,1733859032596,-564.0,0.00010769,2]
[344901503,1733859032605,-1894.0,0.00010769,2]
[344901504,1733859032615,-64.54595039,0.00010769,2]
[344901509,1733859037979,-337.83016865,0.00010769,2]
[344901510,1733859037991,-1210.80474074,0.00010769,2]
[344901511,1733859038032,-2149.81914022,0.00010769,2]
[344901512,1733859038042,-817.0,0.00010769,2]
[344901513,1733859038052,-1253.0,0.00010769,2]
[344901514,1733859038061,-3595.0,0.00010769,2]
[344901515,1733859038071,-932.0,0.00010769,2]
[344901516,1733859038081,-535.0,0.00010769,2]
[344901517,1733859038091,-766.15563054,0.00010769,2]
[344901518,1733859038103,-331.84436946,0.00010769,2]
[344901519,1733859038113,-567.0,0.00010769,2]
[344901520,1733859038123,-634.0,0.00010769,2]
[344901521,1733859038132,-150.0,0.00010769,2]
[344901522,1733859038141,-5967.0,0.00010769,2]
[344901523,1733859038150,-633.3687086,0.00010769,2]
[344901524,1733859038163,-628.6312914,0.00010769,2]
[344901525,1733859038173,-1167.0,0.00010769,2]
[344901526,1733859038183,-1000.0,0.000108,2]
[344901527,1733859038192,-992.54,0.00010858,2]
[344901528,1733859038202,-300.0,0.00010886,2]
[344901529,1733859038215,-150.0,0.00010886,2]
[344901530,1733859038225,-150.0,0.00010886,2]
[344901531,1733859038235,-150.0,0.00010886,2]
[344901532,1733859038245,-150.0,0.00010886,2]
[344901533,1733859038256,-340.57185503,0.00010896,2]
[344901534,1733859038266,-5000.0,0.00010897,2]
[344901535,1733859038277,-37849.45685357,0.000109,2]
[344901536,1733859038289,-17176.08217172,0.000109,2]
[344901537,1733859038300,-2378.87675264,0.000109,2]
[344901538,1733859038319,-1155.3792788,0.000109,2]
[344901539,1733859038330,-970.66528482,0.000109,2]
[344901632,1733859039980,-555.44749,0.000109,2]
[344901634,1733859039992,-809.62,0.000109,2]
[344901636,1733859040004,-2259.83973371,0.000109,2]
[344901639,1733859040015,-3359.37657036,0.000109,2]
[344901644,1733859040056,-724.30398852,0.000109,2]
[344901646,1733859040067,-22625.89313714,0.000109,2]
[344901648,1733859040078,-3775.75767165,0.000109,2]
[344901650,1733859040090,-1808.45000001,0.000109,2]
[344901664,1733859040323,-2126.2,0.000109,2]
[344901666,1733859040335,-1718.33040598,0.000109,2]
[344901669,1733859040353,-794.69398079,0.000109,2]
[344901671,1733859040365,-467.03719866,0.000109,2]
[344901673,1733859040377,-1965.02361978,0.000109,2]
[344901676,1733859040397,-10151.1237,0.000109,2]
[344901680,1733859040425,-2083.50347405,0.000109,2]
[344901698,1733859040593,498.0,0.000145,30]
[344901753,1733859043415,-4182.51798242,0.00010769,2]
[344901754,1733859043427,-9540.48201758,0.00010769,2]
[344901755,1733859043436,-21269.94517389,0.000109,2]
[344901756,1733859043447,-7244.0,0.000109,2]
[344901757,1733859043479,-970.0600117,0.000109,2]
[344901758,1733859043490,-2654.32004942,0.000109,2]
[344901759,1733859043506,-3291.49281732,0.000109,2]
[344901760,1733859043517,-5029.82821127,0.000109,2]
[344901761,1733859043651,-1581.96356991,0.000109,2]
[344901762,1733859043663,-9417.30000002,0.000109,2]
[344901763,1733859043674,-948.27733,0.000109,2]
[344901764,1733859043733,-6332.2849218,0.000109,2]
[344901781,1733859046090,-8062.14981951,0.000109,2]
[344901782,1733859046102,-253.65011316,0.000109,2]
[344901783,1733859046431,-3999.42611812,0.000109,2]
[344901784,1733859046443,-859.26158421,0.000109,2]
[344901785,1733859046452,-1634.0,0.000109,2]
[344901786,1733859046464,-151.97196539,0.000109,2]
[344901787,1733859046474,-151.97196539,0.000109,2]
[344901788,1733859046483,-151.97196539,0.000109,2]
[344901789,1733859046501,-1380.809,0.00010922,2]
[344901790,1733859046511,-340.57185501,0.00010948,2]
[344901791,1733859046520,-500.0,0.00010958,2]
[344901792,1733859046530,-500.0,0.00010958,2]
[344901793,1733859046539,-500.0,0.00010958,2]
[344901794,1733859046549,-357.945,0.00010958,2]
[344901795,1733859046558,-500.0,0.00010958,2]
[344901796,1733859046569,-500.0,0.00010958,2]
[344901797,1733859046578,-500.0,0.00010958,2]
[344901798,1733859046587,-316.97,0.00010958,2]
[344901799,1733859046596,-229.51,0.00010958,2]
[344901800,1733859046605,-500.0,0.00010958,2]
[344901801,1733859046615,-205.85,0.00010958,2]
[344901802,1733859046624,-489.03,0.00010958,2]
[344901803,1733859046633,-500.0,0.00010958,2]
[344901804,1733859046643,-500.0,0.00010958,2]
[344901805,1733859046652,-500.0,0.00010958,2]
[344901806,1733859046661,-500.0,0.00010958,2]
[344901807,1733859046671,-500.0,0.00010958,2]
[344901808,1733859046680,-320.22490883,0.00010958,2]
[344901809,1733859046689,-610.74,0.00010958,2]
[344901810,1733859046699,-500.0,0.00010958,2]
[344901811,1733859046708,-500.0,0.00010958,2]
[344901812,1733859046720,-500.0,0.00010958,2]
[344901813,1733859046729,-500.0,0.00010958,2]
[344901814,1733859046739,-500.0,0.00010958,2]
[344901815,1733859046748,-500.0,0.00010958,2]
[344901816,1733859046758,-500.0,0.00010958,2]
[344901817,1733859046767,-500.0,0.00010958,2]
[344901818,1733859046777,-500.0,0.00010958,2]
[344901819,1733859046786,-500.0,0.00010958,2]
[344901820,1733859046795,-213.52,0.00010958,2]
[344901821,1733859046804,-500.0,0.00010958,2]
[344901822,1733859046813,-500.0,0.00010958,2]
[344901823,1733859046822,-500.0,0.00010958,2]
[344901824,1733859046832,-500.0,0.00010958,2]
[344901825,1733859046841,-500.0,0.00010958,2]
[344901826,1733859046851,-500.0,0.00010958,2]
[344901827,1733859046860,-554.62,0.00010958,2]
[344901828,1733859046869,-500.0,0.00010958,2]
[344901829,1733859046879,-287.32,0.00010958,2]
[344901830,1733859046889,-500.0,0.00010958,2]
[344901831,1733859046898,-500.0,0.00010958,2]
[344901832,1733859046908,-500.0,0.00010958,2]
[344901833,1733859046918,-500.0,0.00010958,2]
[344901834,1733859046927,-500.0,0.00010958,2]
[344901835,1733859046937,-500.0,0.00010958,2]
[344901836,1733859046946,-534.79,0.00010958,2]
[344901837,1733859046956,-553.08,0.00010958,2]
[344901838,1733859046967,-500.0,0.00010958,2]
[344901839,1733859046977,-500.0,0.00010958,2]
[344901840,1733859046987,-500.0,0.00010958,2]
[344901841,1733859046996,-500.0,0.00010958,2]
[344901842,1733859047005,-500.0,0.00010958,2]
[344901843,1733859047015,-500.0,0.00010958,2]
[344901844,1733859047024,-500.0,0.00010958,2]
[344901845,1733859047034,-500.0,0.00010958,2]
[344901846,1733859047043,-500.0,0.00010958,2]
[344901847,1733859047052,-500.0,0.00010958,2]
[344901848,1733859047061,-156.983458,0.00010958,2]
[344901849,1733859047070,-500.0,0.00010958,2]
[344901850,1733859047079,-916.14,0.00010958,2]
[344901851,1733859047089,-542.55,0.00010958,2]
[344901852,1733859047098,-500.0,0.00010958,2]
[344901853,1733859047107,-500.0,0.00010958,2]
[344901854,1733859047117,-500.0,0.00010958,2]
[344901855,1733859047126,-665.51,0.00010958,2]
[344901856,1733859047136,-504.87,0.00010958,2]
[344901857,1733859047145,-1044.84,0.00010958,2]
[344901858,1733859047155,-536.54,0.00010958,2]
[344901859,1733859047164,-500.0,0.00010958,2]
[344901860,1733859047173,-851.25,0.00010958,2]
[344901861,1733859047184,-500.0,0.00010958,2]
[344901862,1733859047193,-500.0,0.00010958,2]
[344901863,1733859047203,-1092.29,0.00010958,2]
[344901864,1733859047214,-392.56,0.00010958,2]
[344901865,1733859047223,-8405.37,0.00010958,2]
[344901866,1733859047232,-1298.655034,0.00010958,2]
[344901867,1733859047306,-5225.444966,0.00010958,2]
[344901868,1733859047315,-500.0,0.00010958,2]
[344901869,1733859047325,-500.0,0.00010958,2]
[344901870,1733859047334,-500.0,0.00010958,2]
[344901871,1733859047343,-539.14,0.00010958,2]
[344901872,1733859047353,-500.0,0.00010958,2]
[344901873,1733859047362,-500.0,0.00010958,2]
[344901874,1733859047372,-500.0,0.00010958,2]
[344901875,1733859047381,-500.0,0.00010958,2]
[344901876,1733859047391,-681.74,0.00010958,2]
[344901877,1733859047399,-500.0,0.00010958,2]
[344901878,1733859047410,-500.0,0.00010958,2]
[344901879,1733859047419,-500.0,0.00010958,2]
[344901880,1733859047429,-500.0,0.00010958,2]
[344901881,1733859047438,-508.4,0.00010958,2]
[344901882,1733859047447,-386.07,0.00010958,2]
[344901883,1733859047457,-745.79,0.00010958,2]
[344901884,1733859047469,-500.0,0.00010958,2]
[344901885,1733859047479,-500.0,0.00010958,2]
[344901886,1733859047488,-2663.85,0.00010958,2]
[344901887,1733859047501,-1229.31,0.00010958,2]
[344901888,1733859047511,-500.0,0.00010958,2]
[344901889,1733859047520,-695.32771362,0.00010958,2]
[344901890,1733859047533,-561.769893,0.00010958,2]
[344901891,1733859047546,-327.8620715,0.00010958,2]
[344901892,1733859047557,-441.79032188,0.00010958,2]
[344901893,1733859047568,-1769.43,0.00010958,2]
[344901894,1733859047578,-1400.77866654,0.00010958,2]
[344901902,1733859067757,698.0,0.00012201,16]
[344901903,1733859162529,2341.0,9.501e-05,2]
[344901905,1733859484237,150.0,0.00012,15]
[344901906,1733859488550,150.0,0.00012,15]
[344901907,1733859489380,150.0,0.00012,15]
[344901908,1733859490248,150.0,0.00012,15]
[344901909,1733859491102,150.0,0.00012,15]
[344901910,1733859491999,150.0,0.00012,15]
[344901911,1733859492840,150.0,0.00012,15]
[344901912,1733859493700,150.0,0.00012,15]
[344901913,1733859494679,150.0,0.00012,15]
[344901914,1733859495391,150.0,0.00012,15]
[344901915,1733859501639,150.0,0.00012,15]
[344901916,1733859502494,150.0,0.00012,15]
[344901917,1733859503306,150.0,0.00012,15]
[344901918,1733859504157,150.0,0.00012,15]
[344901919,1733859505035,150.0,0.00012,15]
[344901920,1733859512683,150.0,0.0002,120]
[344901921,1733859513642,150.0,0.0002,120]
[344901922,1733859514358,150.0,0.0002,120]
[344901923,1733859515132,150.0,0.0002,120]
[344901924,1733859515887,150.0,0.0002,120]
[344901925,1733859516644,150.0,0.0002,120]
[344901926,1733859517472,150.0,0.0002,120]
[344901927,1733859518237,150.0,0.0002,120]
[344901928,1733859519090,150.0,0.0002,120]
[344901929,1733859519884,150.0,0.0002,120]
[344901930,1733859618260,4796.92907316,9.501e-05,2]
[344901931,1733859646799,600.0,8.438e-05,2]
[344901932,1733859678934,2700.0,8.438e-05,2]
[344901933,1733859678971,6900.0,8.438e-05,2]
[344901934,1733859774120,769.47,8.219e-05,2]
[344901935,1733859851279,150.0,0.0002,120]
[344901936,1733859852461,150.0,0.0002,120]
[344901937,1733859852818,150.0,0.0002,120]
[344901938,1733859853534,150.0,0.0002,120]
[344901939,1733859854374,150.0,0.0002,120]
[344901940,1733859855142,150.0,0.0002,120]
[344901941,1733859855783,150.0,0.0002,120]
[344901942,1733859856437,150.0,0.0002,120]
[344901943,1733859857181,150.0,0.0002,120]
[344901944,1733859857324,23900.0,9.38e-05,2]
[344901945,1733859857943,150.0,0.0002,120]
[344901946,1733859917573,1088.49,9.48e-05,2]
[344901947,1733859933058,200.0,9.391e-05,2]
[344901971,1733859945878,393.88,9.391e-05,2]
[344901972,1733860030767,1000.0,9.497e-05,2]
[344901979,1733860074561,2000.0,9.413e-05,2]
[344901980,1733860074763,477.89,9.413e-05,2]
[344901983,1733860158474,1510.75,9.054e-05,2]
[344901996,1733860232191,-156.37,9.57e-05,2]
[344901997,1733860232202,-1188.15,9.57e-05,2]
[344901998,1733860232214,-1010.39743038,9.57e-05,2]
[344902000,1733860232225,-1010.39743038,9.585e-05,2]
[344902002,1733860232237,-1800.0,9.6e-05,3]
[344902003,1733860232248,-800.0,9.6e-05,3]
[344902004,1733860232259,-1010.39743038,9.6e-05,2]
[344902005,1733860232271,-1500.0,9.605e-05,2]
[344902006,1733860232282,-250.0,9.62e-05,2]
[344902007,1733860232293,-3700.0,9.7e-05,3]
[344902008,1733860232303,-1700.0,9.7e-05,3]
[344902009,1733860232314,-2833.6483,9.784e-05,2]
[344902010,1733860232325,-50344.7102,9.784e-05,2]
[344902011,1733860232337,-28601.92920886,9.785e-05,2]
[344902012,1733860232360,-4766.47283101,9.785e-05,2]
[344902013,1733860232373,-638.61000047,9.785e-05,2]
[344902014,1733860232386,-645.0299998,9.785e-05,2]
[344902015,1733860232442,-43574.95795986,9.785e-05,2]
[344902016,1733860232452,-5600.0,9.8e-05,3]
[344902017,1733860232464,-2500.0,9.8e-05,3]
[344902018,1733860232475,-1885.36,9.807e-05,2]
[344902019,1733860232486,-600.0,9.808e-05,2]
[344902020,1733860232496,-6900.0,9.808e-05,2]
[344902021,1733860232508,-2700.0,9.808e-05,2]
[344902022,1733860232519,-250.0,9.846e-05,2]
[344902023,1733860232530,-159.791776,9.863e-05,2]
[344902024,1733860232541,-159.97640461,9.863e-05,2]
[344902025,1733860232553,-159.97638095,9.863e-05,2]
[344902026,1733860232564,-163.757235,9.863e-05,2]
[344902027,1733860232576,-300.0,9.882e-05,2]
[344902028,1733860232587,-300.0,9.882e-05,2]
[344902029,1733860232598,-300.0,9.882e-05,2]
[344902030,1733860232609,-300.0,9.882e-05,2]
[344902031,1733860232620,-300.0,9.882e-05,2]
[344902032,1733860232631,-300.0,9.882e-05,2]
[344902033,1733860232642,-300.0,9.882e-05,2]
[344902034,1733860232667,-300.0,9.882e-05,2]
[344902035,1733860232682,-300.0,9.882e-05,2]
[344902036,1733860232696,-300.0,9.882e-05,2]
[344902037,1733860232708,-300.0,9.882e-05,3]
[344902038,1733860232720,-300.0,9.882e-05,3]
[344902039,1733860232733,-300.0,9.882e-05,3]
[344902040,1733860232746,-300.0,9.882e-05,3]
[344902041,1733860232764,-300.0,9.882e-05,3]
[344902042,1733860232777,-300.0,9.882e-05,3]
[344902043,1733860232789,-300.0,9.882e-05,3]
[344902044,1733860232801,-300.0,9.882e-05,3]
[344902045,1733860232813,-300.0,9.882e-05,3]
[344902046,1733860232824,-300.0,9.882e-05,3]
[344902047,1733860232837,-500.0,9.883e-05,2]
[344902048,1733860232850,-500.0,9.883e-05,2]
[344902049,1733860232865,-500.0,9.883e-05,2]
[344902050,1733860232877,-500.0,9.883e-05,2]
[344902051,1733860232890,-500.0,9.883e-05,2]
[344902052,1733860232906,-486.73460223,9.883e-05,2]
[344902053,1733860232918,-500.0,9.883e-05,2]
[344902054,1733860232929,-500.0,9.883e-05,2]
[344902055,1733860232943,-453.83934791,9.883e-05,2]
[344902056,1733860232955,-500.0,9.883e-05,2]
[344902057,1733860232966,-562.98928164,9.883e-05,2]
[344902058,1733860232977,-230.8,9.884e-05,2]
[344902059,1733860232989,-24758.68039147,9.884e-05,2]
[344902060,1733860233019,-785.62130943,9.884e-05,2]
[344902061,1733860233033,-497.99641296,9.884e-05,2]
[344902062,1733860233051,-1044.31,9.884e-05,2]
[344902063,1733860233104,-500.0,9.863e-05,2]
[344902064,1733860233115,-93.39385516,9.863e-05,2]
[344902101,1733860238765,-6769.928,9.784e-05,2]
[344902102,1733860238775,-406.60614484,9.863e-05,2]
[344902103,1733860238785,-165.91869049,9.863e-05,2]
[344902104,1733860238795,-161.08901832,9.863e-05,2]
[344902105,1733860238804,-8152.0372436,9.884e-05,2]
[344902106,1733860238820,-2481.71778002,9.884e-05,2]
[344902107,1733860238831,-1954.3225435,9.884e-05,2]
[344902108,1733860238843,-4048.5,9.884e-05,2]
[344902109,1733860238857,-1916.34,9.884e-05,2]
[344902156,1733860240319,-1438.13999994,9.884e-05,2]
[344902160,1733860240344,-1122.31851485,9.884e-05,2]
[344902178,1733860240662,-665.31684,9.884e-05,2]
[344902179,1733860240673,-6135.305,9.884e-05,2]
[344902181,1733860240684,-861.510002,9.884e-05,2]
[344902349,1733860244064,-500.0,9.863e-05,2]
[344902350,1733860244073,-1585.3,9.884e-05,2]
[344902351,1733860244196,-14005.6320866,9.884e-05,2]
[344902352,1733860244311,-1289.949935,9.884e-05,2]
[344902353,1733860244475,-46690.19184712,9.884e-05,2]
[344902357,1733860246615,-1000.0,9.784e-05,2]
[344902358,1733860246625,-402022.867231,9.884e-05,2]
[344902359,1733860262019,650.37,9.488e-05,2]
[344902360,1733860279755,500.0,8.438e-05,2]
[344902361,1733860305174,5800.0,8.438e-05,2]
[344902362,1733860305679,2200.0,8.438e-05,2]
[344902363,1733860372854,250.0,9.387e-05,2]
[344902364,1733860384059,150.0,0.0002,120]
[344902365,1733860385041,150.0,0.0002,120]
[344902366,1733860385822,150.0,0.0002,120]
[344902367,1733860386618,150.0,0.0002,120]
[344902368,1733860388062,150.0,0.0002,120]
[344902369,1733860601511,469.0328786,0.000201,120]
[344902370,1733860612937,274.05,9.05e-05,2]
[344902371,1733860735688,1066.14,8.219e-05,2]
[344902372,1733860916934,200.0,8.932e-05,2]